bitfinex/quotes_SOLUSD_20250223
["timestamp","ask_amount","ask_price","bid_price","bid_amount"]
[1740348778354,0.063,167.42,167.41,15.1837564]
[1740348778553,0.063,167.42,167.41,9.2104564]
[1740348778758,0.063,167.42,167.4,9.2404564]
[1740348779068,0.063,167.42,167.41,9.2104564]
[1740348783076,0.063,167.42,167.41,9.2404564]
[1740348785878,0.063,167.42,167.41,0.03]
[1740348786055,0.063,167.42,167.41,9.2404564]
[1740348803590,0.063,167.42,167.41,15.2137564]
[1740348811099,0.063,167.42,167.41,16.2137564]
[1740348813076,0.063,167.42,167.41,97.3137564]
[1740348813486,0.063,167.46,167.41,97.3137564]
[1740348813487,0.063,167.46,167.44,20.0]
[1740348813683,0.063,167.46,167.45,9.2104564]
[1740348815780,0.063,167.46,167.45,15.1823564]
[1740348820601,0.0001,167.46,167.45,15.1823564]
[1740348820789,0.0001,167.46,167.45,34.83200526]
[1740348820994,0.063,167.5,167.49,9.2104564]
[1740348822704,0.063,167.5,167.49,15.1809564]
[1740348825217,0.063,167.5,167.49,96.2809564]
[1740348840532,0.063,167.53,167.49,129.85680526]
[1740348840732,0.063,167.53,167.52,9.2104564]
[1740348841241,0.063,167.53,167.52,15.1798564]
[1740348842733,0.063,167.53,167.52,52.021682]
[1740348843434,0.063,167.53,167.52,133.121682]
[1740348844364,0.063,167.53,167.52,96.2798564]
[1740348844543,0.063,167.53,167.52,133.121682]
[1740348848839,0.063,167.53,167.52,96.2798564]
[1740348849231,0.063,167.53,167.52,133.121682]
[1740348850420,0.063,167.53,167.52,151.77133086]
[1740348851422,0.063,167.54,167.52,152.77133086]
[1740348851621,0.063,167.54,167.53,9.2104564]
[1740348853050,0.063,167.54,167.53,15.1794564]
[1740348853220,0.0001,167.54,167.53,34.82910526]
[1740348853427,0.0001,167.56,167.55,38.64964886]
[1740348853640,0.0001,167.56,167.55,47.86010526]
[1740348854467,0.0001,167.56,167.55,53.82840526]
[1740348857627,0.0001,167.56,167.55,134.92840526]
[1740348858567,0.0001,167.56,167.55,116.2787564]
[1740348866908,0.0001,167.56,167.55,134.95840526]
[1740348867178,0.0001,167.56,167.55,135.95840526]
[1740348873287,0.0001,167.56,167.55,134.95840526]
[1740348873471,0.0001,167.56,167.55,135.95840526]
[1740348877101,0.0001,167.56,167.55,136.95840526]
[1740348877773,0.063,167.59,167.57,1.0]
[1740348877973,0.063,167.59,167.58,9.2104564]
[1740348878693,0.063,167.59,167.58,15.1776564]
[1740348881306,0.063,167.59,167.58,96.2776564]
[1740348882985,0.063,167.59,167.58,133.119482]
[1740348883176,0.063,167.63,167.61,20.0]
[1740348883371,0.063,167.63,167.62,9.2104564]
[1740348884500,0.063,167.63,167.62,15.1762564]
[1740348887202,0.063,167.63,167.62,96.2762564]
[1740348889001,0.0001,167.63,167.62,96.2762564]
[1740348889300,0.063,167.65,167.64,20.0]
[1740348889509,0.063,167.65,167.64,29.2104564]
[1740348890318,0.063,167.65,167.64,110.3104564]
[1740348891385,0.063,167.65,167.64,116.2755564]
[1740348891607,0.063,167.65,167.64,96.2755564]
[1740348908515,1.6417,167.69,167.66,20.0]
[1740348908715,1.6417,167.69,167.66,110.3104564]
[1740348910605,1.6417,167.69,167.66,116.2748564]
[1740348911631,0.063,167.7,167.66,116.2748564]
[1740348912423,0.063,167.7,167.66,96.2748564]
[1740348926031,1.579,167.68,167.66,81.1]
[1740348928227,1.579,167.68,167.66,90.3104564]
[1740348928540,1.579,167.68,167.66,96.2748564]
[1740348934145,1.579,167.68,167.66,81.1]
[1740348934456,27.0037564,167.68,167.65,0.063]
[1740348935224,9.2734564,167.67,167.65,0.063]
[1740348935460,15.2375564,167.67,167.65,0.063]
[1740348935632,9.2104564,167.66,167.65,0.063]
[1740348937325,15.1748564,167.66,167.65,0.063]
[1740348946639,95.9748564,167.66,167.65,0.063]
[1740348951356,96.0048564,167.66,167.65,0.063]
[1740348955456,114.65450526,167.66,167.65,0.063]
[1740348958562,33.85450526,167.66,167.65,0.063]
[1740348961557,34.82450526,167.66,167.65,0.0001]
[1740348964357,127.72450526,167.66,167.65,0.0001]
[1740348964556,20.0,167.62,167.59,0.03]
[1740348964767,9.2104564,167.6,167.59,0.03]
[1740348965539,65.67193086,167.6,167.59,0.03]
[1740348965861,28.83010526,167.6,167.59,0.03]
[1740348966646,34.79660526,167.6,167.59,0.03]
[1740348967174,37.72130411,167.6,167.59,0.03]
[1740348970663,74.56312971,167.6,167.59,0.03]
[1740348971865,38.64964886,167.56,167.55,0.03]
[1740348972164,47.86010526,167.56,167.55,0.03]
[1740348973753,53.82810526,167.56,167.55,0.03]
[1740348974265,35.1784564,167.56,167.55,0.03]
[1740348974468,9.2104564,167.56,167.55,0.03]
[1740348974844,15.1781564,167.57,167.55,0.03]
[1740348980976,9.2104564,167.56,167.55,0.03]
[1740348985277,95.9784564,167.56,167.55,0.03]
[1740348986370,114.62810526,167.56,167.55,0.03]
[1740348991269,33.82810526,167.56,167.55,0.03]
[1740348993179,35.34040526,167.56,167.55,0.03]
[1740348993393,42.57390526,167.56,167.55,0.03]
[1740348995079,42.57390526,167.56,167.55,0.0001]
[1740348995670,20.0,167.52,167.5,0.03]
[1740348995867,13.4504564,167.51,167.5,0.03]
[1740348997386,32.10010526,167.51,167.5,0.03]
[1740348997589,38.06980526,167.51,167.5,0.03]
[1740348997961,133.45470526,167.51,167.5,0.0001]
[1740348999586,136.43383176,167.51,167.5,0.0001]
[1740349001888,0.97,167.49,167.48,0.063]
[1740349002186,28.83010526,167.49,167.48,0.0001]
[1740349003591,34.80060526,167.49,167.48,0.0001]
[1740349010992,34.86360526,167.49,167.48,0.0001]
[1740349016896,9.2734564,167.49,167.48,0.0001]
[1740349017095,4.303,167.49,167.48,0.0001]
[1740349017301,10.2735,167.49,167.48,0.0001]
[1740349017602,19.4839564,167.49,167.48,0.0001]
[1740349018381,10.2735,167.49,167.48,0.0001]
[1740349021605,19.4839564,167.49,167.48,0.0001]
[1740349027202,38.13360526,167.49,167.48,0.0001]
[1740349030194,39.10360526,167.49,167.48,0.0001]
[1740349031498,39.10360526,167.49,167.46,0.03]
[1740349031499,19.61964886,167.48,167.46,0.03]
[1740349031806,90.0104564,167.47,167.46,0.03]
[1740349032829,95.9816564,167.47,167.46,0.03]
[1740349035820,15.1816564,167.47,167.46,0.03]
[1740349039404,34.80130526,167.47,167.46,0.0001]
[1740349046243,20.0,167.43,167.42,0.03]
[1740349046536,52.12010526,167.43,167.42,0.03]
[1740349048417,58.09270526,167.43,167.42,0.03]
[1740349048739,61.45050837,167.43,167.42,0.0001]
[1740349053341,64.37558538,167.43,167.42,0.0001]
[1740349056727,0.97,167.41,167.4,0.03]
[1740349056932,28.83010526,167.41,167.4,0.03]
[1740349057317,28.83010526,167.41,167.4,0.0001]
[1740349057529,29.83010526,167.41,167.4,0.0001]
[1740349058446,20.61964886,167.4,167.39,0.0001]
[1740349058646,35.80380526,167.4,167.39,0.0001]
[1740349067445,34.80380526,167.4,167.39,0.0001]
[1740349067653,35.80380526,167.4,167.39,0.0001]
[1740349067953,19.61964886,167.39,167.38,0.0001]
[1740349068141,28.83010526,167.39,167.38,0.0001]
[1740349069565,34.80410526,167.39,167.38,0.0001]
[1740349082573,196.38410526,167.39,167.38,0.0001]
[1740349083370,20.97,167.36,167.35,0.03]
[1740349083670,89.91193086,167.36,167.35,0.03]
[1740349084184,95.88703086,167.36,167.35,0.03]
[1740349085275,19.61964886,167.35,167.33,0.03]
[1740349085569,19.61964886,167.34,167.33,0.03]
[1740349085772,28.83010526,167.34,167.33,0.03]
[1740349087240,19.61964886,167.33,167.31,0.03]
[1740349087468,9.2104564,167.32,167.31,0.03]
[1740349087663,27.86010526,167.32,167.31,0.03]
[1740349089077,33.83660526,167.32,167.31,0.03]
[1740349089249,126.73660526,167.32,167.31,0.03]
[1740349089772,127.70660526,167.32,167.31,0.03]
[1740349095172,34.80660526,167.32,167.31,0.03]
[1740349097976,33.83660526,167.32,167.31,0.03]
[1740349100078,34.80660526,167.32,167.31,0.03]
[1740349100578,33.83660526,167.32,167.31,0.03]
[1740349101070,126.73660526,167.32,167.31,0.03]
[1740349108282,126.73660526,167.32,167.31,0.03]
[1740349109680,121.76614886,167.32,167.31,0.03]
[1740349110179,130.97660526,167.32,167.31,0.03]
[1740349132284,131.94660526,167.32,167.31,0.03]
[1740349136808,39.04660526,167.32,167.31,0.03]
[1740349140231,149.66660526,167.32,167.31,0.03]
[1740349140728,20.0,167.28,167.25,0.78688705]
[1740349140889,27.86010526,167.27,167.25,0.78688705]
[1740349141090,4.24,167.26,167.25,0.78688705]
[1740349141928,10.2187,167.26,167.25,0.78688705]
[1740349142302,38.07880526,167.26,167.25,0.78688705]
[1740349146714,41.10540167,167.26,167.25,0.78688705]
[1740349148029,31.89494527,167.26,167.25,0.78688705]
[1740349148230,41.10540167,167.26,167.25,0.78688705]
[1740349155827,41.10540167,167.26,167.25,0.28688705]
[1740349167352,41.16840167,167.26,167.25,0.28688705]
[1740349171933,42.13840167,167.26,167.25,0.28688705]
[1740349173038,92.13840167,167.26,167.25,8.705e-05]
[1740349173240,20.97,167.22,167.21,0.03]
[1740349173437,50.39850526,167.22,167.21,0.03]
[1740349173954,56.37860526,167.22,167.21,0.03]
[1740349174931,57.37860526,167.22,167.21,0.03]
[1740349175153,57.37860526,167.22,167.14,0.03]
[1740349175154,0.97,167.2,167.14,0.03]
[1740349175358,9.2104564,167.17,167.14,0.03]
[1740349175833,18.64964886,167.18,167.14,0.03]
[1740349176035,24.63124886,167.18,167.14,0.03]
[1740349176271,33.84170526,167.18,167.14,0.03]
[1740349176632,24.63124886,167.18,167.14,0.03]
[1740349178161,33.84170526,167.18,167.14,0.03]
[1740349178459,80.8,167.17,167.14,0.03]
[1740349178663,90.0104564,167.17,167.14,0.03]
[1740349179243,9.2104564,167.16,167.14,0.03]
[1740349179557,90.0104564,167.16,167.14,0.03]
[1740349181461,95.9927564,167.16,167.14,0.03]
[1740349181864,9.2104564,167.15,167.14,0.03]
[1740349185766,15.1930564,167.15,167.14,0.03]
[1740349188958,3.02684595,167.17,167.14,9.2404564]
[1740349189141,3.02684595,167.17,167.15,9.2104564]
[1740349189350,3.02684595,167.17,167.14,9.2404564]
[1740349189748,3.02684595,167.17,167.14,0.03]
[1740349193359,9.00884595,167.17,167.14,0.03]
[1740349194171,3.02684595,167.17,167.14,0.03]
[1740349194575,9.00874595,167.17,167.14,0.03]
[1740349203486,10.3014,167.19,167.14,0.03]
[1740349203653,4.32,167.18,167.14,9.2404564]
[1740349204065,4.32,167.18,167.14,0.03]
[1740349204478,10.3016,167.18,167.14,0.03]
[1740349204777,4.32,167.18,167.14,0.03]
[1740349205361,10.3016,167.18,167.14,0.03]
[1740349207384,5.9816,167.18,167.14,0.03]
[1740349207590,4.32,167.17,167.14,0.03]
[1740349208285,10.3019,167.17,167.14,0.03]
[1740349210269,4.32,167.16,167.14,0.03]
[1740349211586,10.3023,167.16,167.14,0.03]
[1740349213992,19.5127564,167.16,167.14,0.03]
[1740349214476,10.3023,167.16,167.14,0.03]
[1740349218500,19.5127564,167.16,167.14,0.03]
[1740349220077,10.3023,167.16,167.14,0.03]
[1740349223004,91.1023,167.16,167.14,0.03]
[1740349236612,4.3,167.15,167.14,9.2404564]
[1740349236976,80.8,167.16,167.14,9.2404564]
[1740349237304,4.3,167.15,167.14,9.2404564]
[1740349239503,80.8,167.16,167.14,9.2404564]
[1740349239713,4.3,167.15,167.14,9.2404564]
[1740349240706,5.9816,167.18,167.14,9.2404564]
[1740349240898,4.3,167.17,167.14,9.2404564]
[1740349242499,4.3,167.17,167.14,15.2233564]
[1740349242681,4.3,167.17,167.14,9.2404564]
[1740349242882,4.3,167.17,167.14,15.2233564]
[1740349243084,4.3,167.17,167.15,9.2104564]
[1740349243290,4.3,167.17,167.14,9.2404564]
[1740349244810,4.3,167.17,167.14,0.03]
[1740349250609,4.3,167.17,167.14,9.2404564]
[1740349252994,12.15184986,167.19,167.14,15.2231564]
[1740349253195,4.3,167.16,167.14,15.2231564]
[1740349254819,4.3,167.16,167.14,6.0127]
[1740349265334,4.3,167.16,167.14,0.03]
[1740349299199,5.9816,167.18,167.14,0.03]
[1740349299408,4.28,167.17,167.16,9.2104564]
[1740349320119,4.28,167.17,167.16,9.2404564]
[1740349323419,4.28,167.17,167.16,0.03]
[1740349325695,2.94139346,167.19,167.16,9.2404564]
[1740349325909,4.26,167.18,167.16,9.2404564]
[1740349330430,4.26,167.18,167.16,0.03]
[1740349357362,10.2416,167.18,167.16,0.03]
[1740349358421,19.4520564,167.18,167.16,0.03]
[1740349364446,18.64964886,167.17,167.16,0.03]
[1740349364650,33.84200526,167.17,167.16,0.03]
[1740349365146,114.64200526,167.17,167.16,0.03]
[1740349368554,33.84200526,167.17,167.16,0.03]
[1740349378752,18.64964886,167.17,167.16,0.03]
[1740349378954,33.84200526,167.17,167.16,0.03]
[1740349380446,38.64964886,167.15,167.14,0.03]
[1740349380653,47.86010526,167.15,167.14,0.03]
[1740349382851,53.84270526,167.15,167.14,0.03]
[1740349389261,20.97,167.11,167.1,0.43]
[1740349389461,20.97,167.11,167.02,9.2104564]
[1740349389462,20.0,167.08,167.02,9.2104564]
[1740349389650,27.86010526,167.07,167.02,9.2104564]
[1740349390160,9.2104564,167.06,167.01,9.2104564]
[1740349390362,4.26,167.05,167.0,609.2104564]
[1740349390673,13.4704564,167.05,167.0,609.2104564]
[1740349390860,5.9865,167.04,167.0,609.2104564]
[1740349391359,18.64964886,167.04,167.0,600.0]
[1740349391546,27.86010526,167.04,167.0,600.0]
[1740349392547,30.90537313,167.04,167.0,600.0]
[1740349392868,21.69491673,167.04,167.0,600.0]
[1740349393442,3.04526787,167.04,167.01,9.2104564]
[1740349393647,4.26,167.05,167.02,9.2104564]
[1740349395578,4.26,167.05,167.02,15.1976564]
[1740349395772,4.26,167.05,167.03,9.2104564]
[1740349395973,4.26,167.05,167.04,9.2104564]
[1740349397053,4.26,167.05,167.04,15.1969564]
[1740349397952,4.26,167.06,167.04,15.1969564]
[1740349398169,4.26,167.06,167.05,9.2104564]
[1740349399163,4.26,167.06,167.05,15.1966564]
[1740349400768,108.66010526,167.11,167.05,15.1966564]
[1740349401072,4.26,167.1,167.07,9.2104564]
[1740349402398,4.26,167.1,167.08,5.9851]
[1740349402566,4.26,167.1,167.07,15.1958564]
[1740349404671,2.96810941,167.12,167.07,15.1958564]
[1740349404861,4.26,167.09,167.07,15.1958564]
[1740349406485,29.2104564,167.08,167.04,0.0001]
[1740349406670,9.2104564,167.07,167.04,0.0001]
[1740349408385,9.2104564,167.06,167.04,0.0001]
[1740349410184,119.44964886,167.08,167.04,0.0001]
[1740349410359,9.2104564,167.05,167.04,0.0001]
[1740349412790,18.64964886,167.05,167.04,0.0001]
[1740349412971,27.86010526,167.05,167.04,0.0001]
[1740349414784,18.64964886,167.05,167.04,0.0001]
[1740349414979,30.90640367,167.05,167.04,0.0001]
[1740349416974,36.95560367,167.05,167.04,0.0001]
[1740349417284,54.11840526,167.01,167.0,600.0]
[1740349417592,58.43840526,167.01,167.0,600.0]
[1740349417797,58.43840526,167.01,167.0,588.00143998]
[1740349418697,64.42600526,167.01,167.0,588.00143998]
[1740349419488,64.42600526,167.01,167.0,576.00287996]
[1740349425194,64.42600526,167.01,167.0,564.00551991]
[1740349428682,64.42600526,167.01,167.0,564.03551991]
[1740349429092,65.39600526,167.01,167.0,552.03743999]
[1740349429402,65.39600526,167.01,167.0,540.03936007]
[1740349430779,65.39600526,167.01,167.0,539.53936007]
[1740349431906,65.39600526,167.01,167.0,515.54463997]
[1740349432199,65.39600526,167.01,167.0,503.54727992]
[1740349432576,65.39600526,167.01,167.0,491.54991987]
[1740349433402,65.39600526,167.01,167.0,405.23364642]
[1740349433716,65.39600526,167.01,167.0,332.34364642]
[1740349434105,65.39600526,167.01,167.0,283.85364642]
[1740349434912,65.39600526,167.01,167.0,271.85436645]
[1740349435121,65.39600526,167.01,167.0,259.85508648]
[1740349435523,65.39600526,167.01,167.0,247.85580651]
[1740349435708,65.39600526,167.01,167.0,204.26462654]
[1740349435910,65.39600526,167.01,167.0,158.94814657]
[1740349436223,65.39600526,167.01,167.0,113.6316666]
[1740349436418,65.39600526,167.01,167.0,36.37638663]
[1740349436617,19.61964886,167.0,166.96,0.0484462]
[1740349436817,27.86010526,166.97,166.96,0.0484462]
[1740349437617,33.84910526,166.97,166.96,0.0484462]
[1740349438410,35.40130526,166.97,166.96,0.0484462]
[1740349441218,71.97,166.93,166.87,0.83539945]
[1740349441417,38.64964886,166.88,166.87,0.83539945]
[1740349441623,20.0,166.88,166.87,0.83539945]
[1740349442215,1.97,166.8,166.66,36.79367025]
[1740349442422,4.5,166.79,166.67,0.89935251]
[1740349442609,4.5,166.79,166.68,2.0]
[1740349442808,4.5,166.79,166.75,9.3029131]
[1740349443023,18.64964886,166.78,166.68,36.79367025]
[1740349443225,18.64964886,166.78,166.74,9.3029131]
[1740349443424,18.64964886,166.78,166.75,9.3029131]
[1740349444027,4.5,166.79,166.76,9.3029131]
[1740349444230,4.5,166.79,166.7,0.06137117]
[1740349444417,4.5,166.79,166.74,9.3029131]
[1740349444418,18.64964886,166.78,166.74,9.3029131]
[1740349444812,18.64964886,166.78,166.75,9.3029131]
[1740349445012,18.64964886,166.78,166.76,9.3029131]
[1740349445340,18.64964886,166.78,166.77,9.3029131]
[1740349445533,24.64574886,166.78,166.7,6.05997117]
[1740349445733,18.64964886,166.78,166.73,9.3029131]
[1740349446126,18.64964886,166.78,166.72,9.3029131]
[1740349446323,24.64564886,166.78,166.72,9.3029131]
[1740349446516,105.44564886,166.78,166.72,9.3029131]
[1740349446717,105.44564886,166.78,166.71,9.3029131]
[1740349446916,9.33495274,166.73,166.71,9.3029131]
[1740349447151,13.89495274,166.73,166.72,9.3029131]
[1740349447751,23.22990549,166.73,166.72,9.3029131]
[1740349448615,4.56,166.73,166.72,9.3029131]
[1740349449640,4.56,166.73,166.72,5.998]
[1740349449850,4.56,166.73,166.72,9.3029131]
[1740349451144,13.71926859,166.73,166.72,9.3029131]
[1740349452515,4.56,166.73,166.72,9.3029131]
[1740349453018,10.15926859,166.74,166.72,9.3029131]
[1740349453214,4.54,166.73,166.71,5.9983]
[1740349454123,23.20990549,166.73,166.71,5.9983]
[1740349454536,23.20990549,166.73,166.67,42.3979919]
[1740349454537,23.20990549,166.73,166.68,5.9995]
[1740349454742,23.20990549,166.73,166.72,9.3029131]
[1740349454945,4.54,166.73,166.72,9.3029131]
[1740349456248,1.0,166.74,166.72,9.3029131]
[1740349456452,4.54,166.73,166.72,9.3029131]
[1740349459058,1.0,166.74,166.72,52.5124655]
[1740349459269,1.0,166.74,166.73,9.3029131]
[1740349459570,1.0,166.74,166.68,5.9995]
[1740349459862,1.0,166.74,166.72,9.3029131]
[1740349463271,1.0,166.74,166.71,9.3029131]
[1740349463740,1.0,166.76,166.71,9.3029131]
[1740349463944,1.0,166.74,166.71,9.3029131]
[1740349464987,1.0,166.74,166.72,5.998]
[1740349465333,1.0,166.74,166.73,9.3029131]
[1740349466658,1.0,166.74,166.71,0.03]
[1740349466840,1.0,166.74,166.72,9.3029131]
[1740349467039,1.0,166.76,166.72,9.3029131]
[1740349467242,1.0,166.74,166.73,9.3029131]
[1740349469644,1.0,166.74,166.72,5.9978]
[1740349469837,1.0,166.74,166.73,9.3029131]
[1740349473580,1.0,166.75,166.73,9.3029131]
[1740349473767,1.0,166.74,166.72,5.9978]
[1740349474992,1.0,166.74,166.72,9.3029131]
[1740349476315,1.0,166.74,166.73,9.3029131]
[1740349476594,1.0,166.74,166.72,9.3029131]
[1740349477516,1.0,166.74,166.72,15.3007131]
[1740349478483,1.0,166.74,166.73,9.3029131]
[1740349478989,1.0,166.74,166.72,15.3007131]
[1740349479169,81.8,166.77,166.73,9.3029131]
[1740349479361,1.0,166.76,166.75,9.3029131]
[1740349479557,5.52,166.76,166.75,9.3029131]
[1740349480106,5.52,166.76,166.75,15.2999131]
[1740349481472,4.5,166.76,166.75,15.2999131]
[1740349482273,5.5,166.76,166.75,15.2999131]
[1740349482986,4.5,166.76,166.75,15.2999131]
[1740349483502,5.5,166.76,166.75,15.2999131]
[1740349483671,5.5,166.76,166.75,9.3029131]
[1740349483871,5.5,166.76,166.74,15.3001131]
[1740349484172,2.6520057,166.76,166.74,15.3001131]
[1740349485403,1.6520057,166.76,166.74,15.3001131]
[1740349485699,2.1520057,166.76,166.74,15.3001131]
[1740349485898,1.1520057,166.76,166.75,9.3029131]
[1740349486065,1.0,166.77,166.75,9.3029131]
[1740349486267,5.5,166.77,166.75,9.3029131]
[1740349486473,4.5,166.77,166.74,15.3001131]
[1740349486781,5.5,166.77,166.74,15.3001131]
[1740349491800,5.5,166.77,166.75,9.3029131]
[1740349492302,4.5,166.77,166.76,9.3029131]
[1740349492507,5.5,166.77,166.76,9.3029131]
[1740349493603,4.5,166.77,166.76,9.3029131]
[1740349493900,5.5,166.77,166.75,15.2996131]
[1740349494503,4.5,166.77,166.75,15.2996131]
[1740349494706,5.5,166.77,166.75,9.3029131]
[1740349494880,5.5,166.77,166.75,15.2998131]
[1740349500508,89.86266136,166.81,166.76,9.3029131]
[1740349500509,1.0,166.81,166.76,9.3029131]
[1740349500817,5.46,166.8,166.79,9.3029131]
[1740349502402,1.0,166.8,166.79,9.3029131]
[1740349502703,5.46,166.8,166.79,9.3029131]
[1740349503103,5.46,166.8,166.75,5.997]
[1740349503424,5.46,166.8,166.78,9.3029131]
[1740349506026,1.0,166.8,166.78,9.3029131]
[1740349506195,5.46,166.8,166.78,9.3029131]
[1740349511645,4.46,166.8,166.78,9.3029131]
[1740349511937,5.46,166.8,166.79,9.3029131]
[1740349512230,4.46,166.8,166.79,9.3029131]
[1740349512440,5.46,166.8,166.79,9.3029131]
[1740349515344,5.46,166.8,166.78,9.3029131]
[1740349517555,5.46,166.8,166.79,9.3029131]
[1740349518553,5.46,166.8,166.76,0.03]
[1740349518837,4.523,166.8,166.78,9.3029131]
[1740349519143,4.523,166.8,166.79,9.3029131]
[1740349519540,0.063,166.8,166.79,9.3029131]
[1740349532029,0.063,166.8,166.79,15.2984131]
[1740349534155,0.063,166.8,166.79,42.697505]
[1740349546478,0.063,166.8,166.79,42.697505]
[1740349550993,0.063,166.8,166.79,79.9091574]
[1740349552359,0.063,166.8,166.79,42.697505]
[1740349555058,0.063,166.8,166.79,79.9091574]
[1740349560188,3.943,166.85,166.79,79.9091574]
[1740349560488,3.943,166.85,166.84,9.3029131]
[1740349560685,2.943,166.85,166.84,9.3029131]
[1740349560874,3.943,166.85,166.84,9.3029131]
[1740349561076,2.943,166.85,166.84,9.3029131]
[1740349561793,2.5531,166.87,166.84,9.3029131]
[1740349561969,1.0,166.86,166.84,9.3029131]
[1740349562170,1.0,166.86,166.85,9.3029131]
[1740349563086,6.9131,166.87,166.85,9.3029131]
[1740349563274,5.9131,166.87,166.85,9.3029131]
[1740349563481,6.9131,166.87,166.85,9.3029131]
[1740349563901,5.9131,166.87,166.85,9.3029131]
[1740349564476,1.5531,166.87,166.85,9.3029131]
[1740349564685,6.9131,166.87,166.85,9.3029131]
[1740349564973,1.0,166.86,166.84,9.3029131]
[1740349566403,1.0,166.86,166.84,9.3329131]
[1740349566695,1.063,166.86,166.84,9.3329131]
[1740349569283,5.423,166.86,166.84,9.3329131]
[1740349576778,4.423,166.86,166.84,9.3329131]
[1740349581008,5.423,166.86,166.84,9.3329131]
[1740349586603,4.423,166.86,166.84,15.3266131]
[1740349586810,4.423,166.86,166.85,9.3029131]
[1740349587021,0.063,166.86,166.85,9.3029131]
[1740349602429,0.063,166.86,166.85,9.3329131]
[1740349603415,0.063,166.86,166.85,0.03]
[1740349615147,0.063,166.86,166.85,9.3329131]
[1740349619616,0.063,166.86,166.85,15.3263131]
[1740349621011,0.063,166.86,166.85,42.725405]
[1740349632781,0.063,166.86,166.85,43.725405]
[1740349634583,0.0001,166.86,166.85,43.725405]
[1740349637093,0.063,166.91,166.86,1.0]
[1740349637382,0.063,166.91,166.9,9.3029131]
[1740349637571,0.063,166.91,166.9,36.702005]
[1740349638685,0.063,166.91,166.9,42.693605]
[1740349639592,0.063,166.92,166.9,44.59207317]
[1740349639757,0.063,166.92,166.91,9.3029131]
[1740349640879,0.063,166.92,166.91,15.2941131]
[1740349643787,0.063,166.97,166.91,43.693205]
[1740349643999,0.063,166.97,166.95,9.3029131]
[1740349645188,0.063,166.97,166.96,15.2923131]
[1740349654613,0.063,166.97,166.89,27.3990919]
[1740349654614,1.0,166.94,166.89,27.3990919]
[1740349654774,10.3029131,166.94,166.89,33.3909919]
[1740349654978,7.8321,166.96,166.92,9.3029131]
[1740349655213,7.8321,166.96,166.89,48.3708919]
[1740349655214,1.0,166.95,166.93,9.3029131]
[1740349655403,1.0,166.95,166.91,9.3029131]
[1740349655602,5.34,166.95,166.9,9.3029131]
[1740349655979,10.3029131,166.93,166.87,9.3029131]
[1740349656182,10.3029131,166.93,166.87,36.702005]
[1740349656672,1.0,166.93,166.87,42.694505]
[1740349657090,1.5863,166.92,166.87,27.3990919]
[1740349657296,6.6175,166.9,166.87,27.3990919]
[1740349659716,6.6175,166.9,166.86,9.3029131]
[1740349661320,12.6091,166.9,166.86,9.3029131]
[1740349662302,12.6091,166.9,166.87,0.03]
[1740349662806,6.6175,166.9,166.87,9.3329131]
[1740349663003,12.6091,166.9,166.87,9.3329131]
[1740349663929,6.6175,166.9,166.87,9.3329131]
[1740349679735,6.6175,166.9,166.87,0.03]
[1740349684221,6.6175,166.9,166.87,9.3329131]
[1740349693551,13.6091,166.9,166.87,0.03]
[1740349693753,5.3,166.89,166.87,0.03]
[1740349694542,11.2919,166.89,166.87,0.03]
[1740349695550,11.8379131,166.88,166.87,0.03]
[1740349696051,2.535,166.88,166.87,0.03]
[1740349696645,8.5273,166.88,166.87,0.03]
[1740349698665,2.535,166.88,166.87,0.03]
[1740349700563,11.51805623,166.88,166.87,0.03]
[1740349705090,5.52575623,166.88,166.87,0.03]